[Event "Ruzomberok Closed 2020 - 3. turnaj"]
[Site "Ruzomberok, Slovakia"]
[Date "2020.09.05"]
[Round "4.6"]
[White "Grib, Stefan"]
[Black "Caban, Lubor"]
[Result "1/2-1/2"]
[TimeControl "10m + 5s"]
[WhiteElo "1429"]
[BlackElo "1668"]

1. d4 {[%clk 00:10:09]} {[%emt 00:00:01]} f5 {[%clk 00:10:08]} {[%emt
00:00:02]} 2. g3 {[%clk 00:10:13]} {[%emt 00:00:01]} Nf6 {[%clk 00:10:12]}
{[%emt 00:00:01]} 3. c4 {[%clk 00:10:16]} {[%emt 00:00:02]} g6 {[%clk
00:10:15]} 4. Bg2 {[%clk 00:10:20]} {[%emt 00:00:01]} Bg7 {[%clk 00:10:19]}
{[%emt 00:00:01]} 5. Nc3 {[%clk 00:10:21]} {[%emt 00:00:03]} c6 {[%clk
00:10:20]} {[%emt 00:00:04]} 6. Nh3 {[%clk 00:09:41]} {[%emt 00:00:45]} O-O
{[%clk 00:10:18]} {[%emt 00:00:07]} 7. O-O {[%clk 00:09:45]} {[%emt 00:00:02]}
Re8 {[%clk 00:10:22]} {[%emt 00:00:01]} 8. Re1 {[%clk 00:09:07]} {[%emt
00:00:43]} e5 {[%clk 00:10:12]} {[%emt 00:00:14]} 9. dxe5 {[%clk 00:08:32]}
{[%emt 00:00:40]} Rxe5 {[%clk 00:10:00]} {[%emt 00:00:17]} 10. Bf4 {[%clk
00:08:03]} {[%emt 00:00:34]} Re8 {[%clk 00:09:36]} {[%emt 00:00:28]} 11. Bd6
{[%clk 00:07:58]} {[%emt 00:00:10]} Ng4 {[%clk 00:08:56]} {[%emt 00:00:44]} 12.
c5 {[%clk 00:07:38]} {[%emt 00:00:26]} b6 {[%clk 00:08:18]} {[%emt 00:00:44]}
13. Qb3+ {[%clk 00:07:09]} {[%emt 00:00:34]} Kh8 {[%clk 00:08:07]} {[%emt
00:00:15]} 14. e4 {[%clk 00:06:02]} {[%emt 00:01:12]} Na6 {[%clk 00:06:47]}
{[%emt 00:01:25]} 15. exf5 {[%clk 00:05:02]} {[%emt 00:01:05]} Nxc5 {[%clk
00:06:34]} {[%emt 00:00:18]} 16. Qc4 {[%clk 00:04:58]} {[%emt 00:00:10]} Nf6
{[%clk 00:06:01]} {[%emt 00:00:38]} 17. Ng5 {[%clk 00:04:32]} {[%emt 00:00:30]}
Ba6 {[%clk 00:05:29]} {[%emt 00:00:37]} 18. Nf7+ {[%clk 00:04:13]} {[%emt
00:00:24]} Kg8 {[%clk 00:05:31]} {[%emt 00:00:02]} 19. Nxd8+ {[%clk 00:04:05]}
{[%emt 00:00:13]} Bxc4 {[%clk 00:05:33]} {[%emt 00:00:03]} 20. Bxc5 {[%clk
00:04:02]} {[%emt 00:00:09]} bxc5 {[%clk 00:05:37]} {[%emt 00:00:01]} 21. Nb7
{[%clk 00:04:02]} {[%emt 00:00:06]} Rxe1+ {[%clk 00:05:13]} {[%emt 00:00:28]}
22. Rxe1 {[%clk 00:04:05]} {[%emt 00:00:02]} Rb8 {[%clk 00:05:07]} {[%emt
00:00:11]} 23. Nd6 {[%clk 00:03:33]} {[%emt 00:00:36]} Ba6 {[%clk 00:04:34]}
{[%emt 00:00:34]} 24. fxg6 {[%clk 00:03:18]} {[%emt 00:00:24]} hxg6 {[%clk
00:04:37]} {[%emt 00:00:03]} 25. b3 {[%clk 00:03:05]} {[%emt 00:00:18]} Bd3
{[%clk 00:03:37]} {[%emt 00:01:03]} 26. Be4 {[%clk 00:02:17]} {[%emt 00:00:55]}
Nxe4 {[%clk 00:03:16]} {[%emt 00:00:25]} 27. Ncxe4 {[%clk 00:02:19]} {[%emt
00:00:03]} Bd4 {[%emt 00:01:05]} 28. Nd2 {[%clk 00:01:46]} {[%emt 00:00:08]}
Rf8 {[%clk 00:02:11]} {[%emt 00:00:41]} 29. Re8 {[%clk 00:01:20]} {[%emt
00:00:32]} Bxf2+ {[%clk 00:02:11]} {[%emt 00:00:04]} 30. Kg2 {[%clk 00:01:20]}
{[%emt 00:00:05]} Bd4 {[%clk 00:02:08]} {[%emt 00:00:08]} 31. Rxf8+ {[%clk
00:01:13]} {[%emt 00:00:13]} Kxf8 {[%clk 00:02:12]} 32. Nc8 {[%clk 00:01:02]}
{[%emt 00:00:17]} a6 {[%clk 00:02:06]} {[%emt 00:00:10]} 33. Nb6 {[%clk
00:01:01]} {[%emt 00:00:06]} Ke7 {[%clk 00:02:07]} {[%emt 00:00:04]} 34. Kf3
{[%clk 00:01:00]} {[%emt 00:00:07]} d5 {[%clk 00:02:09]} {[%emt 00:00:03]} 35.
Na4 {[%clk 00:00:35]} {[%emt 00:00:30]} c4 {[%clk 00:02:05]} {[%emt 00:00:09]}
36. bxc4 {[%clk 00:00:36]} {[%emt 00:00:04]} dxc4 {[%clk 00:02:09]} {[%emt
00:00:01]} 37. Ne4 {[%clk 00:00:31]} {[%emt 00:00:10]} Bc2 {[%clk 00:02:03]}
{[%emt 00:00:11]} 38. Nac3 {[%clk 00:00:31]} {[%emt 00:00:05]} c5 {[%clk
00:02:02]} {[%emt 00:00:05]} 39. Ne2 {[%clk 00:00:24]} {[%emt 00:00:12]} Bd3
{[%clk 00:01:52]} {[%emt 00:00:15]} 40. N2c3 {[%clk 00:00:20]} {[%emt
00:00:10]} Bxc3 {[%clk 00:01:48]} {[%emt 00:00:08]} 41. Nxc3 {[%clk 00:00:23]}
{[%emt 00:00:02]} Kd6 {[%clk 00:01:50]} {[%emt 00:00:03]} 42. Kf4 {[%clk
00:00:21]} {[%emt 00:00:07]} a5 {[%clk 00:01:46]} {[%emt 00:00:09]} 43. a3
{[%clk 00:00:21]} {[%emt 00:00:05]} Ke6 {[%clk 00:01:44]} {[%emt 00:00:07]} 44.
h4 {[%clk 00:00:14]} {[%emt 00:00:12]} Bc2 {[%clk 00:01:43]} {[%emt 00:00:04]}
45. g4 {[%clk 00:00:15]} {[%emt 00:00:07]} Bd3 {[%clk 00:01:44]} {[%emt
00:00:04]} 46. h5 {[%clk 00:00:07]} {[%emt 00:00:14]} gxh5 {[%clk 00:01:48]} 47.
gxh5 {[%clk 00:00:09]} {[%emt 00:00:03]} Kf6 {[%clk 00:01:45]} {[%emt
00:00:07]} 48. h6 {[%clk 00:00:13]} {[%emt 00:00:02]} Bc2 {[%clk 00:01:21]}
{[%emt 00:00:27]} 49. Ke3 {[%clk 00:00:06]} {[%emt 00:00:13]} Ke5 {[%clk
00:01:19]} {[%emt 00:00:05]} 50. Ne2 {[%clk 00:00:06]} {[%emt 00:00:07]} Bb1
{[%clk 00:01:15]} {[%emt 00:00:07]} 51. Nc3 {[%clk 00:00:09]} {[%emt 00:00:04]}
Bg6 {[%clk 00:01:16]} {[%emt 00:00:03]} 52. Ne2 {[%clk 00:00:12]} {[%emt
00:00:02]} Kd6 {[%clk 00:01:14]} {[%emt 00:00:05]} 53. Nf4 {[%clk 00:00:09]}
{[%emt 00:00:09]} Bb1 {[%clk 00:01:13]} {[%emt 00:00:05]} 54. Nh3 {[%clk
00:00:08]} {[%emt 00:00:08]} Kc6 {[%clk 00:01:17]} {[%emt 00:00:01]} 55. Ng5
{[%clk 00:00:11]} Kb5 {[%clk 00:01:19]} {[%emt 00:00:03]} 56. Kd2 {[%clk
00:00:11]} {[%emt 00:00:06]} Ka4 {[%clk 00:01:21]} {[%emt 00:00:03]} 57. Kc3
{[%clk 00:00:13]} {[%emt 00:00:03]} Kxa3 {[%clk 00:01:12]} {[%emt 00:00:13]} 58.
h7 {[%clk 00:00:17]} {[%emt 00:00:01]} Bxh7 {[%clk 00:01:15]} {[%emt 00:00:02]}
59. Nxh7 {[%clk 00:00:21]} {[%emt 00:00:01]} a4 {[%clk 00:01:16]} {[%emt
00:00:04]} 60. Nf6 {[%clk 00:00:21]} {[%emt 00:00:05]} Ka2 {[%clk 00:01:20]}
{[%emt 00:00:01]} 61. Kc2 {[%clk 00:00:21]} {[%emt 00:00:05]} Ka3 {[%clk
00:01:22]} {[%emt 00:00:03]} 62. Kc3 {[%clk 00:00:24]} {[%emt 00:00:02]} Ka2
{[%emt 00:00:01]} 63. Kc2 {[%clk 00:00:28]} a3 {[%clk 00:01:30]} {[%emt
00:00:01]} 64. Nd5 {[%clk 00:00:28]} {[%emt 00:00:05]} Ka1 {[%clk 00:01:33]}
{[%emt 00:00:02]} 65. Nb6 {[%clk 00:00:23]} {[%emt 00:00:10]} c3 {[%clk
00:01:30]} {[%emt 00:00:08]} 66. Nd5 {[%clk 00:00:26]} {[%emt 00:00:02]} Ka2
{[%clk 00:01:27]} {[%emt 00:00:08]} 67. Nxc3+ {[%clk 00:00:24]} {[%emt
00:00:07]} Ka1 {[%clk 00:01:31]} {[%emt 00:00:01]} 68. Ne4 {[%clk 00:00:25]}
{[%emt 00:00:04]} c4 {[%clk 00:01:33]} {[%emt 00:00:03]} 69. Nd6 {[%clk
00:00:28]} {[%emt 00:00:01]} c3 {[%clk 00:01:37]} {[%emt 00:00:02]} 70. Nb5
{[%clk 00:00:32]} {[%emt 00:00:01]} Ka2 {[%clk 00:01:39]} {[%emt 00:00:03]} 71.
Nxc3+ {[%clk 00:00:33]} {[%emt 00:00:03]} Ka1 {[%clk 00:01:43]} {[%emt
00:00:01]} 72. Nb5 {[%clk 00:00:13]} {[%emt 00:00:25]} Ka2 {[%clk 00:01:40]}
{[%emt 00:00:08]} 73. Nc3+ {[%clk 00:00:13]} {[%emt 00:00:06]} Ka1 {[%clk
00:01:43]} {[%emt 00:00:02]} 74. Nb5 {[%clk 00:00:10]} {[%emt 00:00:08]} Ka2
{[%clk 00:01:36]} {[%emt 00:00:11]} 75. Nxa3 {[%clk 00:00:14]} {[%emt
00:00:02]} Kxa3 {[%clk 00:01:40]} {[%emt 00:00:01]} 1/2-1/2

[Event "Ruzomberok Closed 2020 - 3. turnaj"]
[Site "Ruzomberok, Slovakia"]
[Date "2020.09.05"]
[Round "4.7"]
[White "Demko, Ladislav"]
[Black "Hajtmansky, Milan"]
[Result "1-0"]
[TimeControl "10m + 5s"]
[WhiteElo "1701"]
[BlackElo "1590"]

1. e4 {[%emt 00:01:10]} e6 {[%clk 00:10:05]} {[%emt 00:00:01]} 2. d4 {[%clk
00:10:05]} {[%emt 00:00:03]} c5 {[%clk 00:10:05]} {[%emt 00:00:03]} 3. c3
{[%clk 00:10:05]} {[%emt 00:00:09]} cxd4 {[%clk 00:10:05]} {[%emt 00:00:02]} 4.
cxd4 {[%clk 00:10:05]} {[%emt 00:00:04]} Nc6 {[%clk 00:10:05]} {[%emt
00:00:08]} 5. Nf3 {[%clk 00:10:05]} {[%emt 00:00:04]} Bb4+ {[%clk 00:10:05]}
{[%emt 00:00:08]} 6. Nc3 {[%clk 00:10:05]} {[%emt 00:00:03]} Nge7 {[%clk
00:10:05]} {[%emt 00:00:05]} 7. Bd3 {[%clk 00:10:05]} {[%emt 00:00:07]} O-O
{[%clk 00:10:05]} {[%emt 00:00:05]} 8. O-O {[%clk 00:10:05]} {[%emt 00:00:03]}
f5 {[%clk 00:10:05]} {[%emt 00:00:19]} 9. e5 {[%clk 00:10:05]} {[%emt
00:00:09]} Bxc3 {[%clk 00:10:05]} {[%emt 00:00:06]} 10. bxc3 {[%clk 00:10:05]}
{[%emt 00:00:02]} b6 {[%clk 00:10:05]} {[%emt 00:00:12]} 11. Ba3 {[%clk
00:10:05]} {[%emt 00:00:04]} Bb7 {[%clk 00:10:05]} {[%emt 00:00:25]} 12. Qd2
{[%clk 00:09:46]} {[%emt 00:01:17]} a6 {[%clk 00:10:06]} {[%emt 00:00:05]} 13.
Qg5 {[%clk 00:09:38]} {[%emt 00:00:12]} Rf7 {[%clk 00:09:52]} {[%emt 00:00:19]}
14. Qh4 {[%clk 00:09:30]} {[%emt 00:00:13]} Nd5 {[%clk 00:09:44]} {[%emt
00:00:14]} 15. Qg3 {[%clk 00:09:02]} {[%emt 00:00:33]} h6 {[%clk 00:09:13]}
{[%emt 00:00:35]} 16. Bc1 {[%clk 00:08:58]} {[%emt 00:00:09]} Kh8 {[%clk
00:09:06]} {[%emt 00:00:11]} 17. Nh4 {[%clk 00:08:51]} {[%emt 00:00:14]} Nde7
{[%clk 00:08:36]} {[%emt 00:00:34]} 18. f4 {[%clk 00:07:47]} {[%emt 00:01:09]}
Qg8 {[%clk 00:08:26]} {[%emt 00:00:16]} 19. Ba3 {[%clk 00:07:29]} {[%emt
00:00:23]} Qh7 {[%clk 00:08:14]} {[%emt 00:00:17]} 20. Rab1 {[%clk 00:07:25]}
{[%emt 00:00:09]} b5 {[%clk 00:08:17]} {[%emt 00:00:03]} 21. Bd6 {[%clk
00:07:18]} {[%emt 00:00:11]} Rg8 {[%clk 00:08:08]} {[%emt 00:00:15]} 22. c4
{[%clk 00:06:59]} {[%emt 00:00:24]} g5 {[%clk 00:08:03]} {[%emt 00:00:09]} 23.
Nf3 {[%clk 00:06:30]} {[%emt 00:00:34]} gxf4 {[%clk 00:07:44]} {[%emt
00:00:23]} 24. Qxf4 {[%clk 00:06:28]} {[%emt 00:00:07]} Rfg7 {[%clk 00:07:30]}
{[%emt 00:00:19]} 25. g3 {[%clk 00:06:11]} {[%emt 00:00:23]} Ng6 {[%clk
00:07:20]} {[%emt 00:00:15]} 26. Qd2 {[%clk 00:05:54]} {[%emt 00:00:22]} Nce7
{[%clk 00:07:05]} {[%emt 00:00:19]} 27. cxb5 {[%emt 00:00:34]} axb5 {[%emt
00:00:04]} 28. Rxb5 {[%clk 00:05:11]} {[%emt 00:00:09]} Bc6 {[%clk 00:07:04]}
{[%emt 00:00:07]} 29. Rb8 {[%clk 00:05:03]} {[%emt 00:00:13]} Nf4 {[%clk
00:06:53]} {[%emt 00:00:16]} 30. Rxg8+ {[%emt 00:00:05]} Qxg8 {[%emt 00:00:04]}
31. Qxf4 {[%emt 00:00:05]} Nd5 {[%emt 00:00:17]} 32. Qxh6+ {[%clk 00:04:00]}
{[%emt 00:00:36]} Rh7 {[%clk 00:06:50]} {[%emt 00:00:07]} 33. Qg5 {[%clk
00:04:00]} {[%emt 00:00:07]} Qxg5 {[%clk 00:06:47]} {[%emt 00:00:09]} 34. Nxg5
{[%emt 00:00:17]} Rg7 35. h4 {[%emt 00:00:17]} Ne3 {[%emt 00:00:17]} 36. Rb1
{[%clk 00:03:19]} {[%emt 00:00:08]} Rg8 {[%clk 00:06:28]} {[%emt 00:00:19]} 37.
Be7 {[%emt 00:00:28]} Ng4 {[%clk 00:06:11]} 38. Bf6+ {[%clk 00:02:37]} {[%emt
00:00:46]} Nxf6 {[%clk 00:06:08]} {[%emt 00:00:09]} 39. exf6 {[%emt 00:00:03]}
Be4 {[%emt 00:00:19]} 40. Bxe4 {[%clk 00:02:07]} {[%emt 00:00:13]} fxe4 {[%clk
00:06:11]} {[%emt 00:00:02]} 41. Rb7 {[%clk 00:02:03]} {[%emt 00:00:09]} e3
{[%clk 00:06:00]} {[%emt 00:00:16]} 42. Rxd7 {[%clk 00:02:01]} {[%emt
00:00:07]} Rxg5 {[%clk 00:05:41]} {[%emt 00:00:24]} 43. hxg5 {[%clk 00:02:01]}
{[%emt 00:00:05]} Kg8 {[%clk 00:05:37]} {[%emt 00:00:09]} 44. g6 {[%clk
00:02:03]} {[%emt 00:00:04]} e5 {[%clk 00:05:38]} {[%emt 00:00:04]} 45. Rd8#
{[%clk 00:02:04]} {[%emt 00:00:03]} 1-0

[Event "Ruzomberok Closed 2020 - 3. turnaj"]
[Site "Ruzomberok, Slovakia"]
[Date "2020.09.05"]
[Round "5.1"]
[White "Jurgos, Samuel"]
[Black "Holly, Andrej"]
[Result "0-1"]
[TimeControl "10m + 5s"]
[WhiteElo "1073"]
[BlackElo "1714"]

1. d4 {[%clk 00:10:07]} {[%emt 00:00:03]} Nf6 {[%clk 00:10:08]} {[%emt
00:00:02]} 2. Nf3 {[%clk 00:10:11]} {[%emt 00:00:01]} g6 {[%clk 00:10:12]}
{[%emt 00:00:01]} 3. Bg5 {[%clk 00:09:40]} {[%emt 00:00:36]} Bg7 {[%clk
00:10:16]} {[%emt 00:00:02]} 4. e3 {[%clk 00:09:43]} {[%emt 00:00:02]} O-O
{[%clk 00:10:18]} {[%emt 00:00:02]} 5. Bd3 {[%clk 00:09:45]} {[%emt 00:00:03]}
d6 {[%clk 00:10:21]} {[%emt 00:00:02]} 6. O-O {[%clk 00:09:47]} {[%emt
00:00:03]} Nbd7 {[%clk 00:10:14]} {[%emt 00:00:11]} 7. Nbd2 {[%clk 00:09:34]}
{[%emt 00:00:19]} h6 {[%clk 00:10:18]} {[%emt 00:00:02]} 8. Bh4 {[%clk
00:09:36]} {[%emt 00:00:03]} e5 {[%clk 00:10:07]} {[%emt 00:00:15]} 9. c3
{[%clk 00:09:24]} {[%emt 00:00:17]} c6 {[%clk 00:10:07]} {[%emt 00:00:05]} 10.
Qc2 {[%clk 00:09:23]} {[%emt 00:00:07]} Qe7 {[%clk 00:09:47]} {[%emt 00:00:25]}
11. dxe5 {[%clk 00:08:39]} {[%emt 00:00:49]} dxe5 {[%clk 00:09:50]} {[%emt
00:00:02]} 12. Nc4 {[%clk 00:08:13]} {[%emt 00:00:31]} e4 {[%clk 00:09:19]}
{[%emt 00:00:35]} 13. Bxe4 {[%clk 00:07:24]} {[%emt 00:00:55]} Qxe4 {[%clk
00:09:20]} {[%emt 00:00:05]} 14. Qb3 {[%clk 00:06:44]} {[%emt 00:00:44]} Nc5
{[%clk 00:09:04]} {[%emt 00:00:21]} 15. Bxf6 {[%clk 00:06:22]} {[%emt
00:00:27]} Nxb3 {[%clk 00:09:02]} {[%emt 00:00:08]} 16. Nd6 {[%clk 00:06:17]}
{[%emt 00:00:10]} Qe6 {[%clk 00:08:48]} {[%emt 00:00:17]} 17. Bxg7 {[%clk
00:06:04]} {[%emt 00:00:19]} Kxg7 {[%clk 00:08:50]} {[%emt 00:00:03]} 18. Nxc8
{[%clk 00:06:03]} {[%emt 00:00:07]} Nxa1 {[%clk 00:08:52]} {[%emt 00:00:04]}
0-1

[Event "Ruzomberok Closed 2020 - 3. turnaj"]
[Site "Ruzomberok, Slovakia"]
[Date "2020.09.05"]
[Round "5.2"]
[White "Gollner, Martin"]
[Black "Konkol, Emil"]
[Result "1-0"]
[TimeControl "10m + 5s"]
[WhiteElo "1123"]
[BlackElo "1799"]

1. e4 {[%clk 00:10:07]} {[%emt 00:00:02]} e5 {[%clk 00:10:09]} {[%emt
00:00:01]} 2. Nf3 {[%clk 00:10:11]} {[%emt 00:00:02]} Nc6 {[%clk 00:10:13]} 3.
Bc4 {[%clk 00:10:14]} {[%emt 00:00:02]} Bc5 {[%clk 00:10:15]} {[%emt 00:00:02]}
4. c3 {[%clk 00:10:18]} {[%emt 00:00:02]} d6 {[%clk 00:10:18]} {[%emt
00:00:01]} 5. d4 {[%clk 00:10:18]} {[%emt 00:00:06]} Bb6 {[%clk 00:10:20]}
{[%emt 00:00:01]} 6. O-O {[%clk 00:10:04]} {[%emt 00:00:21]} exd4 {[%clk
00:10:11]} {[%emt 00:00:14]} 7. cxd4 {[%clk 00:10:05]} {[%emt 00:00:04]} Bg4
{[%clk 00:09:58]} {[%emt 00:00:17]} 8. Be3 {[%clk 00:09:42]} {[%emt 00:00:29]}
Qf6 {[%clk 00:09:48]} {[%emt 00:00:15]} 9. d5 {[%clk 00:06:03]} {[%emt
00:03:44]} Bxf3 {[%clk 00:09:40]} {[%emt 00:00:13]} 10. Qxf3 {[%clk 00:06:00]}
{[%emt 00:00:08]} Qxf3 {[%clk 00:09:42]} {[%emt 00:00:02]} 11. gxf3 {[%clk
00:06:05]} {[%emt 00:00:01]} Nce7 {[%clk 00:09:40]} {[%emt 00:00:06]} 12. Nc3
{[%clk 00:05:55]} {[%emt 00:00:15]} Nf6 {[%clk 00:09:31]} {[%emt 00:00:13]} 13.
Nb5 {[%clk 00:05:43]} {[%emt 00:00:19]} O-O-O {[%clk 00:09:25]} {[%emt
00:00:11]} 14. Bg5 {[%clk 00:05:08]} {[%emt 00:00:39]} h6 {[%clk 00:09:12]}
{[%emt 00:00:18]} 15. Bxf6 {[%clk 00:04:54]} {[%emt 00:00:20]} gxf6 {[%clk
00:09:16]} {[%emt 00:00:01]} 16. a4 {[%clk 00:04:33]} {[%emt 00:00:26]} a6
{[%clk 00:09:01]} {[%emt 00:00:19]} 17. Nc3 {[%clk 00:04:20]} {[%emt 00:00:19]}
Ng6 {[%clk 00:08:57]} {[%emt 00:00:09]} 18. b4 {[%clk 00:04:18]} {[%emt
00:00:07]} Ne5 {[%clk 00:08:57]} {[%emt 00:00:04]} 19. Be2 {[%clk 00:04:13]}
{[%emt 00:00:10]} Rhg8+ {[%clk 00:08:49]} {[%emt 00:00:13]} 20. Kh1 {[%clk
00:04:16]} {[%emt 00:00:03]} Bd4 {[%clk 00:08:44]} {[%emt 00:00:10]} 21. Ra3
{[%clk 00:04:02]} {[%emt 00:00:20]} Rg7 {[%clk 00:08:20]} {[%emt 00:00:26]} 22.
f4 {[%clk 00:03:19]} {[%emt 00:00:49]} Ng6 {[%clk 00:08:02]} {[%emt 00:00:23]}
23. f5 {[%clk 00:02:49]} {[%emt 00:00:36]} Nf4 {[%clk 00:08:04]} {[%emt
00:00:02]} 24. Bf3 {[%clk 00:02:02]} {[%emt 00:00:53]} Rdg8 {[%clk 00:08:04]}
{[%emt 00:00:03]} 25. Ne2 {[%clk 00:01:37]} {[%emt 00:00:31]} Nxe2 {[%clk
00:06:44]} {[%emt 00:01:25]} 26. Bxe2 {[%clk 00:01:40]} {[%emt 00:00:03]} Rg2
{[%clk 00:06:34]} {[%emt 00:00:14]} 27. Rf3 {[%clk 00:00:51]} {[%emt 00:00:54]}
Be5 {[%clk 00:06:07]} {[%emt 00:00:31]} 28. Rg3 {[%clk 00:00:43]} {[%emt
00:00:14]} Bxg3 {[%clk 00:05:20]} {[%emt 00:00:51]} 29. hxg3 {[%clk 00:00:46]}
{[%emt 00:00:03]} R2xg3 {[%clk 00:05:20]} {[%emt 00:00:05]} 30. fxg3 {[%clk
00:00:49]} {[%emt 00:00:02]} Rxg3 {[%clk 00:05:23]} {[%emt 00:00:01]} 31. b5
{[%clk 00:00:43]} {[%emt 00:00:13]} a5 {[%clk 00:05:23]} {[%emt 00:00:05]} 32.
Rf3 {[%clk 00:00:39]} {[%emt 00:00:09]} Rg4 {[%clk 00:05:13]} {[%emt 00:00:12]}
33. b6 {[%clk 00:00:35]} {[%emt 00:00:13]} Rxe4 {[%clk 00:05:03]} {[%emt
00:00:13]} 34. Bb5 {[%clk 00:00:23]} {[%emt 00:00:18]} cxb6 {[%clk 00:05:02]}
{[%emt 00:00:06]} 35. Rc3+ {[%clk 00:00:23]} {[%emt 00:00:05]} Kd8 {[%clk
00:04:53]} {[%emt 00:00:14]} 36. Rh3 {[%clk 00:00:17]} {[%emt 00:00:12]} Re5
{[%clk 00:04:50]} {[%emt 00:00:08]} 37. Rxh6 {[%clk 00:00:20]} {[%emt
00:00:02]} Rxf5 {[%clk 00:04:54]} 38. Rh8+ {[%clk 00:00:23]} {[%emt 00:00:03]}
Ke7 {[%clk 00:04:57]} {[%emt 00:00:01]} 1-0